[Event "ESP-chT 2nd Division 2019"]
[Site "Linares"]
[Date "2019.08.22"]
[Round "6.10"]
[White "Catalan Gasque, Noelia"]
[Black "Dorado Meijide, Andrea"]
[Result "0-1"]
[ECO "E11"]
[WhiteElo "1789"]
[BlackElo "1762"]
[Annotator "NA"]
[PlyCount "106"]
[EventDate "2019.08.19"]
[EventType "team-tourn"]
[EventCountry "ESP"]
[SourceTitle "playchess.com"]
[Source "ChessBase"]
[SourceQuality "1"]
[TimeControl "5400+30"]

1. d4 {[%emt 0:00:00]} Nf6 {[%emt 0:00:00]} 2. Nf3 {[%emt 0:00:00]} e6 {[%emt 0:00:04]} 3. c4 {[%emt 0:00:36]} Bb4+ {[%emt 0:00:38]} 4. Bd2 {[%emt 0:02:14]} Bxd2+ {[%emt 0:02:45]} 5. Nbxd2 {[%emt 0:00:23]} d6 {[%emt 0:00:29]} 6. e3 {[%emt 0:05:00]} Nbd7 {[%emt 0:01:22]} 7. Be2 {[%emt 0:06:14]} O-O {[%emt 0:02:16]} 8. O-O {[%emt 0:00:12]} Re8 {[%emt 0:02:21]} 9. Qc2 {[%emt 0:02:49]} Qe7 {[%emt 0:03:30]} 10. e4 {[%emt 0:04:47]} e5 {[%emt 0:00:19]} 11. d5 {[%emt 0:01:36]} Nh5 {[%emt 0:04:49]} 12. g3 {[%emt 0:00:44]} Nf8 {[%emt 0:01:36]} 13. Nh4 {[%emt 0:02:20]} Nf4 {[%emt 0:07:07]} 14. gxf4 {[%emt 0:13:07]} Qxh4 {[%emt 0:00:52]} 15. f5 {[%emt 0:00:12]} Nd7 {[%emt 0:12:09]} 16. Kh1 {[%emt 0:01:57]} Nf6 {[%emt 0:00:47]} 17. f3 {[%emt 0:07:07]} Nh5 {[%emt 0:02:46]} 18. Rg1 {[%emt 0:00:11]} Nf4 {[%emt 0:01:01]} 19. Nf1 {[%emt 0:02:35]} Nh3 {[%emt 0:07:08]} 20. Rg3 {[%emt 0:02:34]} Qh6 {[%emt 0:06:35]} 21. Qc3 {[%emt 0:04:57]} Nf4 {[%emt 0:01:37]} 22. Re1 {[%emt 0:02:40]} g6 {[%emt 0:05:25]} 23. Ne3 {[%emt 0:04:45]} Kh8 {[%emt 0:02:16]} 24. Ng4 {[%emt 0:05:03]} Qh4 {[%emt 0:00:30]} 25. fxg6 {[%emt 0:04:27]} hxg6 {[%emt 0:02:00]} 26. Ne3 {[%emt 0:06:14]} Kg7 {[%emt 0:03:02]} 27. Ng2 {[%emt 0:00:24]} Nxg2 {[%emt 0:01:27]} 28. Kxg2 {[%emt 0:01:20]} Rh8 {[%emt 0:00:10]} 29. Rh1 {[%emt 0:00:20]} Bh3+ {[%emt 0:00:41]} 30. Kg1 {[%emt 0:02:17]} Rh6 {[%emt 0:01:22]} 31. Qe3 {[%emt 0:00:43]} Rah8 {[%emt 0:00:56]} 32. Qg5 {[%emt 0:01:33]} Qf4 {[%emt 0:00:19]} 33. Kf2 {[%emt 0:01:14]} Qxg5 {[%emt 0:03:32]} 34. Rxg5 {[%emt 0:00:07]} f6 {[%emt 0:00:19]} 35. Rgg1 {[%emt 0:01:40]} Kf7 {[%emt 0:00:31]} 36. b4 {[%emt 0:01:53]} Bd7 {[%emt 0:00:43]} 37. Kg3 {[%emt 0:01:52]} f5 {[%emt 0:00:42]} 38. Bf1 {[%emt 0:02:34]} f4+ {[%emt 0:01:50]} 39. Kf2 {[%emt 0:01:42]} Rxh2+ {[%emt 0:00:07]} 40. Rxh2 {[%emt 0:00:03]} Rxh2+ {[%emt 0:00:06]} 41. Rg2 {[%emt 0:00:25]} Rxg2+ {[%emt 0:00:15]} 42. Kxg2 {[%emt 0:00:28]} b6 {[%emt 0:00:10]} 43. Bd3 {[%emt 0:00:52]} g5 {[%emt 0:00:26]} 44. Bc2 {[%emt 0:01:27]} g4 {[%emt 0:00:16]} 45. Kf2 {[%emt 0:00:48]} g3+ {[%emt 0:00:37]} 46. Kg2 {[%emt 0:00:16]} Kg6 {[%emt 0:00:34]} 47. a3 {[%emt 0:01:31]} Kh5 {[%emt 0:00:06]} 48. b5 {[%emt 0:00:46]} Kh4 {[%emt 0:00:16]} 49. a4 {[%emt 0:00:31]} Bh3+ {[%emt 0:00:07]} 50. Kg1 {[%emt 0:00:27]} g2 {[%emt 0:00:37]} 51. Kh2 {[%emt 0:01:42]} g1=Q+ {[%emt 0:00:07]} 52. Kxg1 {[%emt 0:00:07]} Kg3 {[%emt 0:00:04]} 53. Bd1 {[%emt 0:00:40]} Bg2 {[%emt 0:00:06]} 0-1

[Event "ESP-chT 2nd Division 2019"]
[Site "Linares"]
[Date "2019.08.22"]
[Round "6.11"]
[White "Rios, Cristhian Camilo"]
[Black "Fernandez Barrera, Victor"]
[Result "1/2-1/2"]
[ECO "E32"]
[WhiteElo "2530"]
[BlackElo "2301"]
[Annotator "ChessBase"]
[PlyCount "90"]
[EventDate "2019.08.19"]
[EventType "team-tourn"]
[EventCountry "ESP"]
[SourceTitle "playchess.com"]
[Source "ChessBase"]
[SourceQuality "1"]
[TimeControl "5400+30"]

1. d4 {[%emt 0:00:00]} Nf6 {[%emt 0:00:00]} 2. c4 {[%emt 0:00:00]} e6 {[%emt 0:00:00]} 3. Nc3 {[%emt 0:00:00]} Bb4 {[%emt 0:00:02]} 4. Qc2 {[%emt 0:00:00]} O-O {[%emt 0:00:52]} 5. e4 {[%emt 0:00:00]} d5 {[%emt 0:00:33]} 6. e5 {[%emt 0:00:02]} Ne4 {[%emt 0:00:13]} 7. Bd3 {[%emt 0:00:07]} c5 {[%emt 0:00:39]} 8. a3 {[%emt 0:00:04]} Bxc3+ {[%emt 0:04:14]} 9. bxc3 {[%emt 0:00:10]} cxd4 {[%emt 0:22:09]} 10. cxd4 {[%emt 0:00:32]} Nc6 {[%emt 0:01:58]} 11. Ne2 {[%emt 0:01:11]} f6 {[%emt 0:07:58]} 12. Bxe4 {[%emt 0:07:42]} dxe4 {[%emt 0:00:26]} 13. exf6 {[%emt 0:02:35]} Qxf6 {[%emt 0:06:24]} 14. Be3 {[%emt 0:00:31]} e5 {[%emt 0:01:56]} 15. dxe5 {[%emt 0:17:05]} Nxe5 {[%emt 0:08:06]} 16. O-O {[%emt 0:00:09]} Qh4 {[%emt 0:08:03]} 17. Qd2 {[%emt 0:11:16]} Be6 {[%emt 0:02:56]} 18. Qd6 {[%emt 0:01:15]} Bxc4 {[%emt 0:06:12]} 19. Qxe5 {[%emt 0:00:15]} Bxe2 {[%emt 0:00:24]} 20. Rfc1 {[%emt 0:00:07]} Qg4 {[%emt 0:03:22]} 21. Rc7 {[%emt 0:05:38]} Rae8 {[%emt 0:04:17]} 22. Qd5+ {[%emt 0:02:33]} Kh8 {[%emt 0:01:59]} 23. Bd4 {[%emt 0:02:50]} Rg8 {[%emt 0:02:51]} 24. h3 {[%emt 0:01:08]} Qg6 {[%emt 0:02:11]} 25. Qxb7 {[%emt 0:00:49]} Bf3 {[%emt 0:00:37]} 26. g3 {[%emt 0:00:13]} h5 {[%emt 0:03:22]} 27. Rac1 {[%emt 0:00:39]} Rd8 {[%emt 0:02:54]} 28. R7c6 {[%emt 0:09:05]} Qg5 {[%emt 0:06:23]} 29. Qb5 {[%emt 0:04:46]} Qd2 {[%emt 0:01:43]} 30. Be3 {[%emt 0:01:03]} Qd7 {[%emt 0:00:20]} 31. Kh2 {[%emt 0:00:09]} Rgf8 {[%emt 0:01:16]} 32. Qb2 {[%emt 0:02:10]} Rc8 {[%emt 0:00:59]} 33. Rh6+ {[%emt 0:03:21]} Kg8 {[%emt 0:00:01]} 34. Rxc8 {[%emt 0:00:45]} Qxc8 {[%emt 0:00:45]} 35. Qb3+ {[%emt 0:00:40]} Rf7 {[%emt 0:00:03]} 36. Rd6 {[%emt 0:00:02]} Qb7 {[%emt 0:01:06]} 37. Qa2 {[%emt 0:04:38]} Kh7 {[%emt 0:00:08]} 38. Rd8 {[%emt 0:00:01]} h4 {[%emt 0:00:57]} 39. Bf4 {[%emt 0:00:45]} hxg3+ {[%emt 0:00:08]} 40. Bxg3 {[%emt 0:00:12]} Qe7 {[%emt 0:00:49]} 41. Rc8 {[%emt 0:01:57]} Qb7 {[%emt 0:00:00]} 42. Rd8 {[%emt 0:00:28]} Qe7 {[%emt 0:00:10]} 43. Rc8 {[%emt 0:01:20]} Qb7 {[%emt 0:00:01]} 44. Qc2 {[%emt 0:00:47]} Qa6 {[%emt 0:01:02]} 45. Qc4 {[%emt 0:03:18]} Qxc4 {[%emt 0:00:01]} 1/2-1/2

[Event "ESP-chT 2nd Division 2019"]
[Site "Linares"]
[Date "2019.08.22"]
[Round "6.12"]
[White "Buendia Pinar, Alvaro"]
[Black "Sosa, Tomas"]
[Result "1/2-1/2"]
[ECO "E40"]
[WhiteElo "2277"]
[BlackElo "2508"]
[Annotator "ChessBase"]
[PlyCount "60"]
[EventDate "2019.08.19"]
[EventType "team-tourn"]
[EventCountry "ESP"]
[SourceTitle "playchess.com"]
[Source "ChessBase"]
[SourceQuality "1"]
[TimeControl "5400+30"]

1. d4 {[%emt 0:00:03]} Nf6 {[%emt 0:00:00]} 2. c4 {[%emt 0:00:46]} e6 {[%emt 0:00:00]} 3. Nc3 {[%emt 0:01:03]} Bb4 {[%emt 0:02:00]} 4. e3 {[%emt 0:01:01]} d5 {[%emt 0:01:05]} 5. Bd3 {[%emt 0:01:07]} O-O {[%emt 0:02:43]} 6. Nge2 {[%emt 0:00:43]} b6 {[%emt 0:04:17]} 7. O-O {[%emt 0:01:36]} Bb7 {[%emt 0:00:26]} 8. Qc2 {[%emt 0:01:53]} a6 {[%emt 0:06:41]} 9. Rd1 Nbd7 {[%emt 0:22:24]} 10. e4 {[%emt 0:08:14]} dxe4 {[%emt 0:07:38]} 11. Nxe4 {[%emt 0:00:13]} Nxe4 {[%emt 0:00:04]} 12. Bxe4 {[%emt 0:00:07]} Bxe4 {[%emt 0:00:05]} 13. Qxe4 {[%emt 0:00:07]} Bd6 {[%emt 0:00:25]} 14. Nc3 {[%emt 0:02:22]} Qe7 {[%emt 0:02:01]} 15. Bf4 {[%emt 0:02:12]} Nf6 {[%emt 0:00:56]} 16. Bxd6 {[%emt 0:01:25]} Qxd6 {[%emt 0:07:08]} 17. Qe2 {[%emt 0:01:04]} Qb4 {[%emt 0:01:35]} 18. a3 {[%emt 0:03:05]} Qb3 {[%emt 0:01:04]} 19. Qd3 {[%emt 0:00:34]} Kh8 {[%emt 0:03:24]} 20. Ne2 {[%emt 0:00:48]} Qxd3 {[%emt 0:00:42]} 21. Rxd3 {[%emt 0:00:08]} Rfd8 {[%emt 0:00:03]} 22. Rad1 {[%emt 0:02:15]} Rab8 {[%emt 0:00:15]} 23. b4 {[%emt 0:01:59]} h6 {[%emt 0:00:44]} 24. f3 {[%emt 0:00:15]} g5 {[%emt 0:00:31]} 25. Kf2 {[%emt 0:01:23]} Kg7 {[%emt 0:00:31]} 26. Nc3 {[%emt 0:02:15]} b5 {[%emt 0:02:24]} 27. cxb5 {[%emt 0:00:27]} axb5 {[%emt 0:00:05]} 28. d5 {[%emt 0:01:10]} exd5 {[%emt 0:06:22]} 29. Nxd5 {[%emt 0:00:09]} Nxd5 {[%emt 0:00:40]} 30. Rxd5 {[%emt 0:00:06]} Rxd5 {[%emt 0:00:10]} 1/2-1/2

[Event "ESP-chT 2nd Division 2019"]
[Site "Linares"]
[Date "2019.08.22"]
[Round "6.13"]
[White "Garriga Cazorla, Pere"]
[Black "Jimenez Martinez, Jose Vicente"]
[Result "1-0"]
[ECO "E90"]
[WhiteElo "2495"]
[BlackElo "2264"]
[Annotator "ChessBase"]
[PlyCount "91"]
[EventDate "2019.08.19"]
[EventType "team-tourn"]
[EventCountry "ESP"]
[SourceTitle "playchess.com"]
[Source "ChessBase"]
[SourceQuality "1"]
[TimeControl "5400+30"]

1. d4 {[%emt 0:00:00]} g6 {[%emt 0:00:00]} 2. c4 {[%emt 0:00:00]} Bg7 {[%emt 0:00:00]} 3. Nc3 {[%emt 0:00:00]} d6 {[%emt 0:00:14]} 4. e4 {[%emt 0:00:00]} Nf6 {[%emt 0:00:08]} 5. Nf3 {[%emt 0:00:00]} O-O {[%emt 0:00:07]} 6. h3 {[%emt 0:00:00]} e5 {[%emt 0:01:40]} 7. d5 {[%emt 0:00:00]} a5 {[%emt 0:00:13]} 8. g4 {[%emt 0:00:04]} Na6 {[%emt 0:00:13]} 9. Be3 {[%emt 0:00:05]} Nd7 {[%emt 0:01:41]} 10. a3 {[%emt 0:00:05]} Nac5 {[%emt 0:02:10]} 11. Nd2 {[%emt 0:01:06]} a4 {[%emt 0:00:31]} 12. h4 {[%emt 0:03:18]} c6 {[%emt 0:24:42]} 13. g5 {[%emt 0:13:54]} f5 {[%emt 0:03:15]} 14. Rg1 {[%emt 0:02:26]} f4 {[%emt 0:12:59]} 15. Bxc5 {[%emt 0:00:16]} Nxc5 {[%emt 0:00:02]} 16. Qf3 {[%emt 0:00:12]} cxd5 {[%emt 0:04:12]} 17. cxd5 {[%emt 0:02:01]} Bd7 {[%emt 0:01:17]} 18. O-O-O {[%emt 0:09:09]} Qa5 {[%emt 0:03:53]} 19. Kb1 {[%emt 0:03:42]} b5 {[%emt 0:00:27]} 20. Na2 {[%emt 0:00:03]} Rfc8 {[%emt 0:01:48]} 21. Bh3 {[%emt 0:01:21]} Qd8 {[%emt 0:04:58]} 22. Nb4 {[%emt 0:04:03]} Bxh3 {[%emt 0:10:05]} 23. Qxh3 {[%emt 0:00:11]} Qd7 {[%emt 0:00:39]} 24. Rh1 {[%emt 0:02:05]} Kf7 {[%emt 0:05:08]} 25. Rc1 {[%emt 0:01:20]} Qxh3 {[%emt 0:03:04]} 26. Rxh3 {[%emt 0:00:06]} h5 {[%emt 0:00:30]} 27. Rhc3 {[%emt 0:03:12]} Ke8 {[%emt 0:01:52]} 28. Nd3 {[%emt 0:03:35]} Bf8 {[%emt 0:05:39]} 29. Nf3 {[%emt 0:01:45]} Rcb8 {[%emt 0:00:51]} 30. Nxc5 {[%emt 0:01:48]} dxc5 {[%emt 0:00:01]} 31. Nxe5 {[%emt 0:00:02]} Bg7 {[%emt 0:00:21]} 32. Nc6 {[%emt 0:00:06]} Bxc3 {[%emt 0:00:22]} 33. Rxc3 {[%emt 0:00:36]} b4 {[%emt 0:01:41]} 34. axb4 {[%emt 0:01:12]} cxb4 {[%emt 0:00:07]} 35. Rc4 {[%emt 0:00:03]} Rb5 {[%emt 0:00:45]} 36. Ka2 {[%emt 0:01:25]} Rc8 {[%emt 0:01:33]} 37. Rd4 {[%emt 0:01:02]} Rc5 {[%emt 0:04:43]} 38. Rxb4 {[%emt 0:03:26]} Rc2 {[%emt 0:00:58]} 39. f3 {[%emt 0:00:03]} Ra8 {[%emt 0:01:48]} 40. Kb1 {[%emt 0:08:14]} Rf2 {[%emt 0:00:30]} 41. Ne5 {[%emt 0:00:36]} Ke7 {[%emt 0:03:30]} 42. Rb6 {[%emt 0:00:17]} a3 {[%emt 0:01:15]} 43. bxa3 {[%emt 0:00:21]} Rxa3 {[%emt 0:01:02]} 44. d6+ {[%emt 0:00:06]} Kf8 {[%emt 0:00:26]} 45. d7 {[%emt 0:00:20]} Ke7 {[%emt 0:00:22]} 46. Rb8 {[%emt 0:00:17]} 1-0

[Event "ESP-chT 2nd Division 2019"]
[Site "Linares"]
[Date "2019.08.22"]
[Round "6.14"]
[White "Alvarez Serrano, Carlos"]
[Black "Fernandez Diaz, Cristian"]
[Result "0-1"]
[ECO "B39"]
[WhiteElo "2244"]
[BlackElo "2303"]
[Annotator "NA"]
[PlyCount "87"]
[EventDate "2019.08.19"]
[EventType "team-tourn"]
[EventCountry "ESP"]
[SourceTitle "playchess.com"]
[Source "ChessBase"]
[SourceQuality "1"]
[TimeControl "5400+30"]

1. Nf3 {[%emt 0:00:05]} c5 {[%emt 0:00:00]} 2. c4 {[%emt 0:00:20]} Nc6 {[%emt 0:00:17]} 3. d4 {[%emt 0:00:40]} cxd4 {[%emt 0:00:21]} 4. Nxd4 {[%emt 0:00:12]} Nf6 {[%emt 0:00:14]} 5. Nc3 {[%emt 0:00:07]} g6 {[%emt 0:00:06]} 6. e4 {[%emt 0:01:01]} Bg7 {[%emt 0:00:32]} 7. Be3 {[%emt 0:00:07]} Ng4 {[%emt 0:00:51]} 8. Qxg4 {[%emt 0:00:15]} Nxd4 {[%emt 0:00:05]} 9. Qd1 {[%emt 0:00:08]} e5 {[%emt 0:00:05]} 10. Nb5 {[%emt 0:08:39]} d6 {[%emt 0:00:23]} 11. Qd2 {[%emt 0:05:17]} Nxb5 {[%emt 0:07:26]} 12. cxb5 {[%emt 0:00:03]} Be6 {[%emt 0:00:08]} 13. Rd1 {[%emt 0:13:52]} Bxa2 {[%emt 0:11:41]} 14. Qxd6 {[%emt 0:01:05]} Qxd6 {[%emt 0:02:49]} 15. Rxd6 {[%emt 0:00:02]} Bf8 {[%emt 0:00:37]} 16. Rd1 {[%emt 0:00:59]} Bb4+ {[%emt 0:07:07]} 17. Bd2 {[%emt 0:02:37]} Bxd2+ {[%emt 0:01:54]} 18. Kxd2 {[%emt 0:05:44]} O-O-O+ {[%emt 0:02:39]} 19. Bd3 {[%emt 0:01:36]} Rd4 {[%emt 0:03:50]} 20. Rc1+ {[%emt 0:06:40]} Kb8 {[%emt 0:01:11]} 21. Rc3 {[%emt 0:00:44]} Be6 {[%emt 0:03:37]} 22. Kc2 {[%emt 0:00:55]} Rhd8 {[%emt 0:02:58]} 23. Re1 {[%emt 0:02:34]} R8d6 {[%emt 0:03:50]} 24. Re3 {[%emt 0:01:17]} Rb6 {[%emt 0:09:12]} 25. Rc5 {[%emt 0:08:58]} f6 {[%emt 0:01:26]} 26. Be2 {[%emt 0:00:28]} a5 {[%emt 0:10:32]} 27. f3 {[%emt 0:05:28]} Rbd6 {[%emt 0:12:30]} 28. Rd3 {[%emt 0:01:21]} a4 {[%emt 0:02:51]} 29. Rxd4 {[%emt 0:00:42]} Rxd4 {[%emt 0:00:02]} 30. Kc3 {[%emt 0:13:04]} Ka7 {[%emt 0:00:44]} 31. Rc7 {[%emt 0:00:06]} Bd7 {[%emt 0:00:04]} 32. b4 {[%emt 0:02:54]} Kb6 {[%emt 0:00:56]} 33. Rc5 {[%emt 0:00:01]} a3 {[%emt 0:07:20]} 34. Bc4 {[%emt 0:01:48]} g5 {[%emt 0:02:23]} 35. h3 {[%emt 0:02:22]} h5 {[%emt 0:00:38]} 36. Kc2 {[%emt 0:00:10]} h4 {[%emt 0:01:04]} 37. Kc3 {[%emt 0:00:01]} Rd1 {[%emt 0:01:30]} 38. Rd5 {[%emt 0:00:34]} Rxd5 {[%emt 0:00:21]} 39. exd5 {[%emt 0:00:01]} Bxb5 {[%emt 0:00:31]} 40. Bxb5 {[%emt 0:00:13]} Kxb5 {[%emt 0:00:04]} 41. Kb3 {[%emt 0:00:08]} Kb6 {[%emt 0:00:10]} 42. Kxa3 {[%emt 0:00:23]} Kc7 {[%emt 0:00:14]} 43. Ka4 {[%emt 0:00:57]} Kd6 {[%emt 0:01:09]} 44. Kb5 {[%emt 0:00:06]} 0-1

[Event "ESP-chT 2nd Division 2019"]
[Site "Linares"]
[Date "2019.08.22"]
[Round "6.15"]
[White "Marti Puig, Patricia"]
[Black "Jimenez Fernandez, Rebeca"]
[Result "0-1"]
[ECO "B06"]
[WhiteElo "1683"]
[BlackElo "1928"]
[Annotator "NA"]
[PlyCount "80"]
[EventDate "2019.08.19"]
[EventType "team-tourn"]
[EventCountry "ESP"]
[SourceTitle "playchess.com"]
[Source "ChessBase"]
[SourceQuality "1"]
[TimeControl "5400+30"]

1. e4 {[%emt 0:00:00]} g6 {[%emt 0:00:00]} 2. d4 {[%emt 0:00:23]} Bg7 {[%emt 0:00:00]} 3. Nf3 {[%emt 0:01:12]} d6 {[%emt 0:00:00]} 4. Bc4 {[%emt 0:01:04]} a6 {[%emt 0:00:23]} 5. Ng5 {[%emt 0:04:31]} e6 {[%emt 0:02:47]} 6. f4 {[%emt 0:06:25]} b5 {[%emt 0:02:22]} 7. Be2 {[%emt 0:04:18]} Bb7 {[%emt 0:01:22]} 8. Qd3 {[%emt 0:09:53]} Nf6 {[%emt 0:01:20]} 9. e5 {[%emt 0:05:05]} Nd5 {[%emt 0:04:13]} 10. O-O {[%emt 0:02:19]} O-O {[%emt 0:01:13]} 11. c3 {[%emt 0:05:06]} c5 {[%emt 0:05:11]} 12. Nd2 {[%emt 0:07:06]} Nxf4 {[%emt 0:11:18]} 13. Rxf4 {[%emt 0:01:57]} Qxg5 {[%emt 0:00:25]} 14. Ne4 {[%emt 0:00:43]} Bxe4 {[%emt 0:00:37]} 15. Qxe4 {[%emt 0:00:54]} d5 {[%emt 0:00:23]} 16. Qf3 {[%emt 0:06:47]} Qe7 {[%emt 0:00:42]} 17. Qh3 {[%emt 0:04:44]} Nc6 {[%emt 0:02:05]} 18. Bd2 {[%emt 0:09:15]} cxd4 {[%emt 0:10:39]} 19. cxd4 {[%emt 0:00:41]} Rac8 {[%emt 0:01:51]} 20. a3 {[%emt 0:02:44]} Rc7 {[%emt 0:04:42]} 21. Raf1 {[%emt 0:02:25]} f6 {[%emt 0:18:25]} 22. Bg4 {[%emt 0:08:46]} f5 {[%emt 0:00:54]} 23. Bd1 {[%emt 0:04:04]} g5 {[%emt 0:01:00]} 24. R4f2 {[%emt 0:00:27]} Rfc8 {[%emt 0:12:26]} 25. Qd3 {[%emt 0:07:36]} a5 {[%emt 0:02:40]} 26. Qxb5 {[%emt 0:01:22]} Nxd4 {[%emt 0:00:34]} 27. Qxa5 {[%emt 0:00:18]} Bxe5 {[%emt 0:00:16]} 28. Bb4 {[%emt 0:00:24]} Qg7 {[%emt 0:00:46]} 29. Bc3 {[%emt 0:00:59]} g4 {[%emt 0:06:25]} 30. g3 {[%emt 0:00:28]} h5 {[%emt 0:01:25]} 31. Qa6 {[%emt 0:01:03]} Rc6 {[%emt 0:00:36]} 32. Qd3 {[%emt 0:00:05]} R6c7 {[%emt 0:03:06]} 33. Qa6 {[%emt 0:01:33]} Qf6 {[%emt 0:01:40]} 34. Re1 {[%emt 0:00:20]} Re8 {[%emt 0:00:45]} 35. Rd2 {[%emt 0:01:31]} Nf3+ {[%emt 0:01:36]} 36. Bxf3 {[%emt 0:00:02]} Bxc3 {[%emt 0:00:12]} 37. bxc3 {[%emt 0:00:15]} gxf3 {[%emt 0:00:16]} 38. Rxd5 {[%emt 0:01:32]} Qxc3 {[%emt 0:01:58]} 39. Rde5 {[%emt 0:00:34]} Qd4+ {[%emt 0:01:27]} 40. Kf1 {[%emt 0:00:38]} Qd2 0-1

[Event "ESP-chT 2nd Division 2019"]
[Site "Linares"]
[Date "2019.08.22"]
[Round "6.16"]
[White "Portela Peleteiro, Alberto"]
[Black "Nayhebaver, Martin"]
[Result "0-1"]
[ECO "B23"]
[WhiteElo "2375"]
[BlackElo "2469"]
[Annotator "ChessBase"]
[PlyCount "78"]
[EventDate "2019.08.19"]
[EventType "team-tourn"]
[EventCountry "ESP"]
[SourceTitle "playchess.com"]
[Source "ChessBase"]
[SourceQuality "1"]
[TimeControl "5400+30"]

1. e4 {[%emt 0:01:34]} c5 {[%emt 0:00:00]} 2. Ne2 {[%emt 0:00:52]} Nc6 {[%emt 0:01:59]} 3. Nbc3 {[%emt 0:02:21]} Nf6 {[%emt 0:00:22]} 4. g3 {[%emt 0:00:55]} d5 {[%emt 0:01:15]} 5. exd5 {[%emt 0:00:14]} Nd4 {[%emt 0:00:15]} 6. Bg2 {[%emt 0:13:24]} Bg4 {[%emt 0:00:34]} 7. h3 {[%emt 0:01:18]} Bf3 {[%emt 0:00:45]} 8. Bxf3 {[%emt 0:01:11]} Nxf3+ {[%emt 0:00:07]} 9. Kf1 {[%emt 0:00:03]} Nxd5 {[%emt 0:01:29]} 10. Kg2 {[%emt 0:00:05]} Ne5 {[%emt 0:01:40]} 11. Re1 {[%emt 0:12:46]} e6 {[%emt 0:04:56]} 12. d3 {[%emt 0:05:33]} Be7 {[%emt 0:02:21]} 13. Nf4 {[%emt 0:01:41]} Nxf4+ {[%emt 0:16:02]} 14. Bxf4 {[%emt 0:00:06]} Nc6 {[%emt 0:00:15]} 15. h4 {[%emt 0:09:32]} O-O {[%emt 0:01:13]} 16. h5 {[%emt 0:02:31]} h6 {[%emt 0:01:43]} 17. Qg4 {[%emt 0:10:31]} Kh8 {[%emt 0:02:35]} 18. Rad1 {[%emt 0:04:01]} Qd7 {[%emt 0:03:15]} 19. Be5 {[%emt 0:03:22]} f6 {[%emt 0:03:12]} 20. Bf4 {[%emt 0:01:01]} f5 {[%emt 0:00:27]} 21. Qe2 {[%emt 0:14:32]} Nd4 {[%emt 0:00:37]} 22. Qe3 {[%emt 0:01:07]} Nxc2 {[%emt 0:02:08]} 23. Qxe6 {[%emt 0:00:46]} Nxe1+ {[%emt 0:00:06]} 24. Rxe1 {[%emt 0:00:03]} Qxe6 {[%emt 0:00:20]} 25. Rxe6 {[%emt 0:00:05]} Bf6 {[%emt 0:00:36]} 26. Nd5 {[%emt 0:02:07]} Rae8 {[%emt 0:02:10]} 27. Rxe8 {[%emt 0:02:22]} Rxe8 {[%emt 0:00:05]} 28. Nxf6 {[%emt 0:00:02]} gxf6 {[%emt 0:00:09]} 29. Bxh6 {[%emt 0:00:03]} Re2 {[%emt 0:00:15]} 30. Be3 {[%emt 0:00:08]} Rxb2 {[%emt 0:02:04]} 31. Kf3 {[%emt 0:00:07]} Rxa2 {[%emt 0:06:01]} 32. Kf4 {[%emt 0:01:45]} Ra5 {[%emt 0:01:28]} 33. Kxf5 {[%emt 0:03:18]} c4+ {[%emt 0:01:27]} 34. Kg6 {[%emt 0:00:41]} cxd3 {[%emt 0:00:31]} 35. h6 {[%emt 0:00:24]} Ra2 {[%emt 0:02:18]} 36. Bd4 {[%emt 0:05:13]} Ra6 {[%emt 0:00:05]} 37. Bc3 {[%emt 0:00:13]} Rc6 {[%emt 0:00:20]} 38. Bd2 {[%emt 0:00:12]} f5+ {[%emt 0:00:58]} 39. Kxf5 {[%emt 0:00:08]} Rc2 {[%emt 0:00:06]} 0-1

[Event "ESP-chT 2nd Division 2019"]
[Site "Linares"]
[Date "2019.08.22"]
[Round "6.17"]
[White "Khamrakulov, Ibragim S."]
[Black "Veiga, Jose Francisco R P N"]
[Result "1/2-1/2"]
[ECO "C54"]
[WhiteElo "2429"]
[BlackElo "2346"]
[Annotator "NA"]
[PlyCount "107"]
[EventDate "2019.08.19"]
[EventType "team-tourn"]
[EventCountry "ESP"]
[SourceTitle "playchess.com"]
[Source "ChessBase"]
[SourceQuality "1"]
[TimeControl "5400+30"]

1. e4 {[%emt 0:00:00]} e5 {[%emt 0:01:24]} 2. Nf3 {[%emt 0:00:00]} Nc6 {[%emt 0:00:15]} 3. Bc4 {[%emt 0:00:00]} Bc5 {[%emt 0:00:32]} 4. c3 {[%emt 0:00:06]} Nf6 {[%emt 0:00:05]} 5. d3 {[%emt 0:00:14]} O-O {[%emt 0:00:08]} 6. O-O {[%emt 0:00:03]} d5 {[%emt 0:00:40]} 7. exd5 {[%emt 0:00:58]} Nxd5 {[%emt 0:00:09]} 8. Nbd2 {[%emt 0:01:05]} Nb6 {[%emt 0:01:03]} 9. Bb5 {[%emt 0:01:11]} Bd6 {[%emt 0:19:59]} 10. Ne4 {[%emt 0:07:14]} Re8 {[%emt 0:06:41]} 11. d4 {[%emt 0:03:24]} exd4 {[%emt 0:05:33]} 12. Nxd6 {[%emt 0:00:23]} Qxd6 {[%emt 0:00:08]} 13. Nxd4 {[%emt 0:00:13]} Bd7 {[%emt 0:01:03]} 14. Nxc6 {[%emt 0:00:34]} bxc6 {[%emt 0:04:56]} 15. Ba6 {[%emt 0:00:53]} Qxd1 {[%emt 0:05:44]} 16. Rxd1 {[%emt 0:00:11]} Nd5 {[%emt 0:05:13]} 17. Bd2 {[%emt 0:01:05]} Rab8 {[%emt 0:01:54]} 18. b3 {[%emt 0:01:29]} Bg4 {[%emt 0:01:33]} 19. f3 {[%emt 0:01:33]} Be6 {[%emt 0:00:17]} 20. Kf2 {[%emt 0:00:47]} Red8 {[%emt 0:02:39]} 21. Be1 {[%emt 0:10:33]} Kf8 {[%emt 0:00:59]} 22. c4 {[%emt 0:04:19]} Nb6 {[%emt 0:01:53]} 23. Rxd8+ {[%emt 0:01:14]} Rxd8 {[%emt 0:04:00]} 24. Bb7 {[%emt 0:02:55]} c5 {[%emt 0:04:54]} 25. Ke2 {[%emt 0:03:41]} Re8 {[%emt 0:02:22]} 26. Kd2 {[%emt 0:00:30]} Rd8+ {[%emt 0:00:04]} 27. Ke3 {[%emt 0:01:46]} Nc8 {[%emt 0:04:32]} 28. Bxc8 {[%emt 0:09:04]} Rxc8 {[%emt 0:01:15]} 29. Bf2 {[%emt 0:00:18]} Ke7 {[%emt 0:00:16]} 30. Rd1 {[%emt 0:00:07]} Rd8 {[%emt 0:00:52]} 31. Rxd8 {[%emt 0:00:07]} Kxd8 {[%emt 0:00:06]} 32. Ke4 {[%emt 0:00:49]} a6 {[%emt 0:02:01]} 33. Bxc5 {[%emt 0:00:34]} Kd7 {[%emt 0:02:48]} 34. a4 {[%emt 0:01:50]} g6 {[%emt 0:00:18]} 35. Kd4 {[%emt 0:00:48]} Bf5 {[%emt 0:00:15]} 36. Kc3 {[%emt 0:00:57]} Kc6 {[%emt 0:02:04]} 37. Be3 {[%emt 0:00:42]} a5 {[%emt 0:03:25]} 38. g4 {[%emt 0:02:03]} Bb1 {[%emt 0:00:05]} 39. g5 {[%emt 0:03:27]} Bf5 {[%emt 0:04:31]} 40. b4 {[%emt 0:00:45]} axb4+ {[%emt 0:00:15]} 41. Kxb4 {[%emt 0:00:07]} Bh3 {[%emt 0:00:53]} 42. a5 {[%emt 0:02:16]} Bg2 {[%emt 0:00:37]} 43. f4 {[%emt 0:00:34]} Kd6 {[%emt 0:01:23]} 44. Bc5+ {[%emt 0:00:40]} Ke6 {[%emt 0:01:20]} 45. Bd4 {[%emt 0:02:19]} Kd6 {[%emt 0:00:56]} 46. Kb5 {[%emt 0:05:16]} Bc6+ {[%emt 0:00:18]} 47. Ka6 {[%emt 0:00:18]} Kd7 {[%emt 0:00:06]} 48. Be5 {[%emt 0:05:57]} Kc8 {[%emt 0:00:06]} 49. Bd4 {[%emt 0:00:52]} Be8 {[%emt 0:00:04]} 50. Be5 {[%emt 0:00:59]} Bd7 {[%emt 0:00:16]} 51. Bd4 {[%emt 0:00:12]} Be8 {[%emt 0:00:05]} 52. Be5 {[%emt 0:00:15]} Bd7 {[%emt 0:00:05]} 53. Bd4 {[%emt 0:00:07]} Be8 {[%emt 0:00:04]} 54. Be5 {[%emt 0:00:08]} 1/2-1/2